bitfinex/quotes_BTCUSD_20251004
["timestamp","ask_amount","ask_price","bid_price","bid_amount"]
[1759578849063,0.00941027,122050.0,122040.0,3.60176229]
[1759578849261,0.25639959,122050.0,122040.0,3.1222416]
[1759578849430,0.25639959,122050.0,122040.0,3.59739095]
[1759578849830,0.25639959,122050.0,122040.0,3.408924]
[1759578850040,0.25639959,122050.0,122040.0,3.57697445]
[1759578850246,0.25639959,122050.0,122040.0,0.48773045]
[1759578851514,0.25639959,122050.0,122040.0,0.32384976]
[1759578852114,0.25639959,122050.0,122040.0,0.48773045]
[1759578852325,0.25639959,122050.0,122040.0,0.17205045]
[1759578852530,0.25639959,122050.0,122040.0,0.48773045]
[1759578852738,0.25639959,122050.0,122040.0,0.32384976]
[1759578853599,0.25639959,122050.0,122040.0,0.31968]
[1759578853805,0.25639959,122050.0,122040.0,0.3237604]
[1759578854015,0.25639959,122050.0,122040.0,0.48764109]
[1759578854712,0.25639959,122050.0,122040.0,0.3237604]
[1759578858991,0.25639959,122050.0,122040.0,0.3826679]
[1759578862931,0.25639959,122050.0,122040.0,0.004]
[1759578863149,0.28099272,122050.0,122040.0,0.05676]
[1759578863977,0.28099272,122050.0,122040.0,0.05476]
[1759578864141,0.28099272,122050.0,122040.0,0.05276]
[1759578864564,0.28399272,122050.0,122040.0,0.05276]
[1759578865495,0.28899272,122050.0,122040.0,0.05276]
[1759578868156,0.16389071,122040.0,122020.0,0.17209293]
[1759578868369,0.09942606,122030.0,122020.0,0.17597661]
[1759578868599,0.10465606,122030.0,122020.0,0.49222549]
[1759578869427,0.26855018,122030.0,122020.0,0.49222549]
[1759578869772,0.08835206,122030.0,122020.0,0.49422549]
[1759578869970,0.10465606,122030.0,122020.0,0.49422549]
[1759578870930,0.26855018,122030.0,122020.0,0.49422549]
[1759578871133,0.25224618,122030.0,122020.0,0.49422549]
[1759578872297,0.08835206,122030.0,122020.0,0.49422549]
[1759578872537,0.10465606,122030.0,122020.0,0.49422549]
[1759578872949,0.26855018,122030.0,122020.0,0.49422549]
[1759578873178,0.25224618,122030.0,122020.0,0.49422549]
[1759578877612,0.25224618,122030.0,122020.0,0.32213256]
[1759578886249,0.25224618,122030.0,122020.0,0.38104006]
[1759578889363,0.25224618,122030.0,122020.0,0.38100006]
[1759578889766,0.25224618,122030.0,122020.0,0.06520006]
[1759578889974,0.25224618,122030.0,122020.0,0.38100006]
[1759578891222,0.25639814,122030.0,122020.0,0.38100006]
[1759578904110,0.25639814,122030.0,122010.0,0.29262278]
[1759578904111,0.25639814,122030.0,122010.0,0.19424375]
[1759578904309,0.25644735,122030.0,122020.0,3.174404]
[1759578904544,0.25638735,122030.0,122020.0,0.08516]
[1759578905326,0.25638735,122030.0,122020.0,0.31576]
[1759578905885,0.25638735,122030.0,122020.0,0.31776]
[1759578908918,0.25638735,122030.0,122020.0,0.002]
[1759578909100,0.25638735,122030.0,122020.0,0.81776]
[1759578909302,0.25638735,122030.0,122020.0,0.31776]
[1759578914097,0.25638735,122030.0,122020.0,0.37672415]
[1759578914482,0.25638735,122030.0,122020.0,0.14612415]
[1759578914689,0.25638735,122030.0,122020.0,0.3178]
[1759578914903,0.28098286,122030.0,122020.0,0.3178]
[1759578917226,0.28098286,122030.0,122020.0,0.002]
[1759578917436,0.28098286,122030.0,122020.0,0.23264]
[1759578918208,0.16805951,122020.0,122010.0,0.08516]
[1759578918409,0.25642157,122020.0,122010.0,0.3158]
[1759578918967,0.2810197,122020.0,122010.0,0.3158]
[1759578919371,0.2830197,122020.0,122010.0,0.3158]
[1759578920051,0.2850197,122020.0,122010.0,0.3158]
[1759578923995,0.2850197,122020.0,122010.0,0.3161806]
[1759578932353,0.2850197,122020.0,122010.0,0.0003806]
[1759578932537,0.2850197,122020.0,122010.0,0.3161806]
[1759578951321,0.2850197,122020.0,122010.0,0.0855406]
[1759578951507,0.2850197,122020.0,122010.0,0.2985006]
[1759578953651,0.2850197,122020.0,122010.0,0.0003806]
[1759578953851,0.2850197,122020.0,122010.0,0.2287806]
[1759578954058,0.2850197,122020.0,122010.0,0.2309806]
[1759578954310,0.2850197,122020.0,122010.0,0.3161406]
[1759578960136,0.2850197,122020.0,122010.0,0.0855406]
[1759578960340,0.2850197,122020.0,122010.0,0.3161406]
[1759578967453,0.2818997,122020.0,122010.0,0.3180806]
[1759578967768,0.2818997,122020.0,122010.0,0.3161406]
[1759578967977,0.2850797,122020.0,122010.0,0.3161406]
[1759578986962,0.2850797,122020.0,122010.0,0.2309806]
[1759578987547,0.16392099,122010.0,122000.0,0.08516]
[1759578987757,0.24704305,122010.0,122000.0,0.08516]
[1759578987960,0.24704305,122010.0,122000.0,0.0871]
[1759578988905,0.24911305,122010.0,122000.0,0.3177]
[1759578989112,0.25230305,122010.0,122000.0,0.31576]
[1759578989313,0.25330305,122010.0,122000.0,0.31576]
[1759578991464,0.25330305,122010.0,121990.0,0.41620461]
[1759578991624,0.25330305,122010.0,122000.0,3.405004]
[1759578991832,0.25330305,122010.0,122000.0,0.31576]
[1759578992778,0.25330305,122010.0,121990.0,0.41920461]
[1759578993076,0.25330305,122010.0,122000.0,3.405004]
[1759578993226,0.25330305,122010.0,122000.0,0.31596449]
[1759578993641,0.25230305,122010.0,122000.0,0.31596449]
[1759578994214,0.25230305,122010.0,122000.0,0.23080449]
[1759578994443,0.25230305,122010.0,122000.0,0.31596449]
[1759578995518,0.25230305,122010.0,122000.0,0.00020449]
[1759578995706,0.25330305,122010.0,122000.0,0.31596449]
[1759578996802,0.25330305,122010.0,122000.0,0.00020449]
[1759578997028,0.25330305,122010.0,122000.0,0.08536449]
[1759578997238,0.25330305,122010.0,122000.0,0.31596449]
[1759578997650,0.25330305,122010.0,122000.0,0.37493964]
[1759578998891,0.25737501,122010.0,122000.0,0.05917964]
[1759578999084,0.25737501,122010.0,122000.0,0.23080449]
[1759578999308,0.28197562,122010.0,122000.0,0.23080449]
[1759579006687,0.27679562,122010.0,122000.0,0.23395449]
[1759579007300,0.27679562,122010.0,122000.0,0.23274449]
[1759579008128,0.27878562,122010.0,122000.0,0.23274449]
[1759579010319,0.28189562,122010.0,122000.0,0.23080449]
[1759579015098,0.28189562,122010.0,122000.0,0.00020449]
[1759579015289,0.28189562,122010.0,122000.0,0.23084449]
[1759579015502,0.28189562,122010.0,122000.0,0.31604449]
[1759579022267,0.25729501,122010.0,122000.0,0.31604449]
[1759579030240,0.25729501,122010.0,122000.0,0.00020449]
[1759579030428,0.25729501,122010.0,122000.0,0.31604449]
[1759579031976,0.25729501,122010.0,122000.0,0.00020449]
[1759579032188,0.25729501,122010.0,122000.0,0.31604449]
[1759579033066,0.25629501,122010.0,122000.0,0.31604449]
[1759579033476,0.26229501,122010.0,122000.0,0.31604449]
[1759579034744,0.26229501,122010.0,122000.0,0.00020449]
[1759579034903,0.26229501,122010.0,122000.0,0.31604449]
[1759579035895,0.26729501,122010.0,122000.0,0.31604449]
[1759579052963,0.26729501,122010.0,121980.0,0.16015301]
[1759579052964,0.16393442,122000.0,121980.0,0.16015301]
[1759579053160,0.24705648,122000.0,121990.0,3.674444]
[1759579053428,0.25632844,122000.0,121990.0,0.0852]
[1759579053834,0.16394786,121990.0,121980.0,0.18855694]
[1759579053988,0.16394786,121990.0,121980.0,3.36494094]
[1759579054160,0.16394786,121990.0,121980.0,3.59558094]
[1759579054439,0.16394786,121990.0,121980.0,3.27974094]
[1759579054575,0.17025982,121990.0,121980.0,3.2532053]
[1759579054779,0.17025982,121990.0,121980.0,3.5690453]
[1759579054980,0.17025982,121990.0,121980.0,3.57106614]
[1759579055181,0.00631196,121990.0,121980.0,3.57106614]
[1759579055389,0.00415196,121990.0,121980.0,3.57106614]
[1759579056001,0.22616844,122000.0,121980.0,3.57106614]
[1759579056207,0.22316844,122000.0,121990.0,3.089244]
[1759579056435,0.22316844,122000.0,121990.0,3.405084]
[1759579056661,0.22532844,122000.0,121990.0,0.31584]
[1759579057602,0.22732844,122000.0,121990.0,0.31584]
[1759579058786,0.22732844,122000.0,121990.0,0.31604452]
[1759579059191,0.23032844,122000.0,121990.0,0.31604452]
[1759579061721,0.23032844,122000.0,121990.0,0.23084452]
[1759579061926,0.23032844,122000.0,121990.0,0.31604452]
[1759579092197,0.25492968,122000.0,121990.0,0.31604452]
[1759579092419,0.25492968,122000.0,121990.0,0.23084452]
[1759579102276,0.25492968,122000.0,121990.0,0.23088452]
[1759579102711,0.25492968,122000.0,121990.0,0.00020452]
[1759579102926,0.25492968,122000.0,121990.0,0.23088452]
[1759579104866,0.25492968,122000.0,121990.0,0.00020452]
[1759579105115,0.25492968,122000.0,121990.0,0.23088452]
[1759579106301,0.25492968,122000.0,121990.0,0.00020452]
[1759579106892,0.25492968,122000.0,121990.0,0.23088452]
[1759579108289,0.25492968,122000.0,121990.0,0.23084452]
[1759579112179,0.25492968,122000.0,121990.0,0.00020452]
[1759579112374,0.25492968,122000.0,121990.0,0.23084452]
[1759579122522,0.24980968,122000.0,121990.0,0.23278452]
[1759579122946,0.25191968,122000.0,121990.0,0.23084452]
[1759579123152,0.25507968,122000.0,121990.0,0.23084452]
[1759579127949,0.1127233,122000.0,121990.0,0.39794238]
[1759579128151,0.25205648,122000.0,121990.0,0.4569071]
[1759579128346,0.08812206,122000.0,121990.0,0.4815062]
[1759579131705,0.005,122000.0,121990.0,0.4815062]
[1759579132844,0.005,122000.0,121990.0,0.50601352]
[1759579140873,0.005,122000.0,121990.0,0.50480352]
[1759579141076,0.005,122000.0,121990.0,0.50601352]
[1759579142056,0.005,122000.0,121990.0,0.50484352]
[1759579142202,0.005,122000.0,121990.0,0.27416352]
[1759579142409,0.005,122000.0,121990.0,0.59004352]
[1759579148800,0.005,122000.0,121990.0,0.50484352]
[1759579149035,0.005,122000.0,121990.0,0.59004352]
[1759579151919,0.005,122000.0,121990.0,0.27416352]
[1759579152121,0.005,122000.0,121990.0,0.59000352]
[1759579153591,0.16893442,122000.0,121990.0,0.27416352]
[1759579153799,0.17416442,122000.0,121990.0,0.58806352]
[1759579154003,0.25728648,122000.0,121990.0,0.08376834]
[1759579154201,0.25728648,122000.0,121990.0,0.31604452]
[1759579154418,0.25728648,122000.0,121990.0,0.00020452]
[1759579154710,0.25728648,122000.0,121990.0,0.31604452]
[1759579159519,0.25728648,122000.0,121990.0,0.00020452]
[1759579159884,0.25728648,122000.0,121990.0,0.23084452]
[1759579164068,0.25728648,122000.0,121990.0,0.39479238]
[1759579165643,0.25728648,122000.0,121990.0,0.23084452]
[1759579166828,0.25728648,122000.0,121990.0,0.23088452]
[1759579167302,0.2818875,122000.0,121990.0,0.23088452]
[1759579170510,0.2818875,122000.0,121990.0,0.00020452]
[1759579170511,0.7126775,122000.0,121990.0,0.00020452]
[1759579170711,0.7126775,122000.0,121990.0,0.23088452]
[1759579171025,1.0828294,122000.0,121990.0,0.00020452]
[1759579171836,0.6520394,122000.0,121990.0,0.00020452]
[1759579172080,1.0778294,122000.0,121990.0,0.00020452]
[1759579172280,1.0868294,122000.0,121990.0,0.00020452]
[1759579172458,1.0938294,122000.0,121990.0,0.00020452]
[1759579173223,0.74725347,122000.0,121990.0,0.00020452]
[1759579173505,1.17804347,122000.0,121990.0,0.00020452]
[1759579176015,1.0938294,122000.0,121990.0,0.00020452]
[1759579177302,1.3245494,122000.0,121990.0,0.00020452]
[1759579177858,1.0938294,122000.0,121990.0,0.00020452]
[1759579178310,1.3245494,122000.0,121990.0,0.00020452]
[1759579186327,0.8937594,122000.0,121990.0,0.00020452]
[1759579186512,1.3249494,122000.0,121990.0,0.00020452]
[1759579188385,1.0938294,122000.0,121990.0,0.00020452]
[1759579188586,1.3249494,122000.0,121990.0,0.00020452]
[1759579189327,1.0938294,122000.0,121990.0,0.00020452]
[1759579189536,1.3249494,122000.0,121990.0,0.00020452]
[1759579190388,1.0938294,122000.0,121990.0,0.00020452]
[1759579190621,1.3249494,122000.0,121990.0,0.00020452]
[1759579191118,0.8941594,122000.0,121990.0,0.00020452]
[1759579191346,1.3249494,122000.0,121990.0,0.00020452]
[1759579192714,1.5935494,122000.0,121990.0,0.00020452]
[1759579194210,1.1627594,122000.0,121990.0,0.00020452]
[1759579194406,1.5935494,122000.0,121990.0,0.00020452]
[1759579196494,1.1627194,122000.0,121990.0,0.00020452]
[1759579196702,1.5935094,122000.0,121990.0,0.00020452]
[1759579200361,1.1627194,122000.0,121990.0,0.00020452]
[1759579200584,1.5935094,122000.0,121990.0,0.00020452]
[1759579202415,1.1627194,122000.0,121990.0,0.00020452]
[1759579202645,1.5935094,122000.0,121990.0,0.00020452]
[1759579207779,1.40912347,122000.0,121990.0,0.00020452]
[1759579207976,1.3249094,122000.0,121990.0,0.00020452]
[1759579208866,1.0938294,122000.0,121990.0,0.00020452]
[1759579209057,0.6630394,122000.0,121990.0,0.00020452]
[1759579209258,1.3248294,122000.0,121990.0,0.00020452]
[1759579210327,1.0938294,122000.0,121990.0,0.00020452]
[1759579210651,1.3248294,122000.0,121990.0,0.00020452]
[1759579211153,0.6630394,122000.0,121990.0,0.00020452]
[1759579211377,0.8940394,122000.0,121990.0,0.00020452]
[1759579213124,0.6630394,122000.0,121990.0,0.00020452]
[1759579213330,0.8940394,122000.0,121990.0,0.00020452]
[1759579215712,0.1639613,121980.0,121960.0,0.3201737]
[1759579215887,0.1639613,121980.0,121970.0,0.01954747]
[1759579216102,0.24708336,121980.0,121970.0,0.01954747]
[1759579216310,0.24708336,121980.0,121970.0,0.0187466]
[1759579216729,0.24916336,121980.0,121970.0,0.2497466]
[1759579216942,0.25240336,121980.0,121970.0,0.23334913]
[1759579217140,0.25340336,121980.0,121970.0,0.23334913]
[1759579217714,0.24808336,121980.0,121970.0,0.23455913]
[1759579218095,0.24808336,121980.0,121970.0,0.23334913]
[1759579219121,0.25340336,121980.0,121970.0,0.23334913]
[1759579219676,0.25340336,121980.0,121970.0,0.39732387]
[1759579219918,0.24808336,121980.0,121970.0,0.39732387]
[1759579220331,0.25016336,121980.0,121970.0,0.39732387]
[1759579220502,0.25340336,121980.0,121970.0,0.39732387]
[1759579221454,0.24808336,121980.0,121970.0,0.39732387]
[1759579222509,0.25016336,121980.0,121970.0,0.39732387]
[1759579222689,0.25340336,121980.0,121970.0,0.39732387]
[1759579223120,0.24808336,121980.0,121970.0,0.39732387]
[1759579223300,0.24808336,121980.0,121970.0,0.39751587]
[1759579224210,0.25340336,121980.0,121970.0,0.39751587]
[1759579225194,0.24808336,121980.0,121970.0,0.39751587]
[1759579225628,0.25016336,121980.0,121970.0,0.39751587]
[1759579225779,0.25340336,121980.0,121970.0,0.39751587]
[1759579227246,0.25016336,121980.0,121970.0,0.39751587]
[1759579228372,0.25340336,121980.0,121970.0,0.39751587]
[1759579228534,0.25340336,121980.0,121960.0,0.2843714]
[1759579228738,0.08312206,121970.0,121960.0,0.2843714]
[1759579229367,0.08312206,121970.0,121960.0,0.284576]
[1759579229784,0.08312206,121970.0,121960.0,0.518536]
[1759579229988,0.08312206,121970.0,121960.0,0.515536]
[1759579230405,0.08312206,121970.0,121960.0,0.518536]
[1759579231421,0.08312206,121970.0,121960.0,0.519536]
[1759579232054,0.08312206,121970.0,121960.0,0.202376]
[1759579232232,0.08312206,121970.0,121960.0,0.518496]
[1759579232462,0.08312206,121970.0,121960.0,0.519496]
[1759579238527,0.08312206,121970.0,121960.0,0.57846072]
[1759579240693,0.08271211,121970.0,121960.0,0.57846072]
[1759579249607,0.08271211,121970.0,121960.0,0.57842072]
[1759579256432,0.1674902,121980.0,121970.0,0.16397474]
[1759579256433,0.0005489,121980.0,121970.0,0.16397474]
[1759579256568,0.08367096,121980.0,121970.0,0.22296417]
[1759579257371,0.08367096,121980.0,121970.0,0.53904417]
[1759579257584,0.08467096,121980.0,121970.0,0.53904417]
[1759579258171,0.08467096,121980.0,121970.0,0.22296417]
[1759579258369,0.08467096,121980.0,121970.0,0.53904417]
[1759579260664,0.08467096,121980.0,121970.0,0.22296417]
[1759579260844,0.08467096,121980.0,121970.0,0.53900417]
[1759579262369,0.0015489,121980.0,121970.0,3.62824817]
[1759579263945,0.0015489,121980.0,121970.0,3.56925874]
[1759579265239,0.0015489,121980.0,121970.0,3.25321874]
[1759579265422,0.0015489,121980.0,121970.0,3.56925874]
[1759579267360,0.0015489,121980.0,121970.0,3.62812654]
[1759579272911,0.0015489,121980.0,121970.0,3.65272865]
[1759579273971,0.0015489,121980.0,121970.0,3.59386085]
[1759579276594,0.0015489,121980.0,121970.0,3.65270517]
[1759579277910,0.0015489,121980.0,121970.0,3.27782085]
[1759579278119,0.0015489,121980.0,121970.0,3.50862085]
[1759579278323,0.0015489,121980.0,121970.0,3.59382085]
[1759579279691,0.0015489,121980.0,121970.0,3.50862085]
[1759579279920,0.0015489,121980.0,121970.0,3.59382085]
[1759579280807,0.0015489,121980.0,121970.0,3.27782085]
[1759579281028,0.0015489,121980.0,121970.0,3.59382085]
[1759579282378,0.0015489,121980.0,121970.0,3.50862085]
[1759579282614,0.0067389,121980.0,121970.0,3.27782085]
[1759579282840,0.0067389,121980.0,121970.0,3.59382085]
[1759579283062,0.0067389,121980.0,121970.0,3.27782085]
[1759579283280,0.0067389,121980.0,121970.0,3.65266331]
[1759579283497,0.0015489,121980.0,121970.0,3.65266331]
[1759579284416,0.0015489,121980.0,121970.0,3.59378085]
[1759579285808,0.0015489,121980.0,121970.0,3.59382085]
[1759579287433,0.08986096,121980.0,121970.0,0.02460211]
[1759579287640,0.08986096,121980.0,121970.0,0.53891751]
[1759579292862,0.08683096,121980.0,121970.0,0.53891751]
[1759579294616,0.09008096,121980.0,121970.0,0.53891751]
[1759579295580,0.25404226,121980.0,121970.0,0.53891751]
[1759579297711,0.25404226,121980.0,121970.0,0.37494277]
[1759579299670,0.25404226,121980.0,121970.0,0.53891751]
[1759579301011,0.25404226,121980.0,121970.0,0.37494277]
[1759579302162,0.25404226,121980.0,121970.0,0.53891751]
[1759579303843,0.25404226,121980.0,121970.0,0.37494277]
[1759579309792,0.25404226,121980.0,121970.0,0.05894277]
[1759579309991,0.25404226,121980.0,121970.0,0.37494277]
[1759579311518,0.25404226,121980.0,121970.0,0.05894277]
[1759579311738,0.25404226,121980.0,121970.0,0.316]
[1759579312338,0.25404226,121980.0,121970.0,0.37494277]
[1759579324220,0.25404226,121980.0,121970.0,0.37490277]
[1759579324609,0.25404226,121980.0,121970.0,0.31596]
[1759579324809,0.16397474,121970.0,121960.0,0.06165121]
[1759579324982,0.2500468,121970.0,121960.0,3.96685521]
[1759579325202,0.2520668,121970.0,121960.0,0.37761121]
[1759579325395,0.2520668,121970.0,121960.0,0.31866844]
[1759579326060,0.2520668,121970.0,121960.0,0.31966844]
[1759579326430,0.2520668,121970.0,121960.0,0.23746844]
[1759579326772,0.2520668,121970.0,121960.0,0.32266844]
[1759579328189,0.2120668,121970.0,121960.0,0.32266844]
[1759579328398,0.2120668,121970.0,121960.0,0.23746844]
[1759579328605,0.2120668,121970.0,121960.0,0.32266844]
[1759579331175,0.08809206,121970.0,121960.0,0.48665663]
[1759579331414,0.2634008,121970.0,121960.0,0.48665663]
[1759579331560,0.2470968,121970.0,121960.0,0.48665663]
[1759579332366,0.08312206,121970.0,121960.0,0.48665663]
[1759579335178,0.18911673,121980.0,121960.0,0.48665663]
[1759579335408,0.27223879,121980.0,121970.0,0.01639747]
[1759579336992,0.27223879,121980.0,121970.0,0.18037221]
[1759579336993,0.24763226,121980.0,121970.0,0.18037221]
[1759579337193,0.24763226,121980.0,121970.0,0.16397474]
[1759579337986,0.24863226,121980.0,121970.0,0.16397474]
[1759579340195,0.0015489,121980.0,121970.0,0.16397474]
[1759579340399,0.0015489,121980.0,121970.0,3.25321874]
[1759579340539,0.0015489,121980.0,121970.0,3.33676362]
[1759579346748,0.0015489,121980.0,121970.0,3.56760362]
[1759579346958,0.0015489,121980.0,121970.0,3.65280362]
[1759579347286,0.0015489,121980.0,121970.0,3.33676362]
[1759579347503,0.0015489,121980.0,121970.0,3.65280362]
[1759579349118,0.0015489,121980.0,121970.0,3.33676362]
[1759579349320,0.0015489,121980.0,121970.0,3.65276362]
[1759579350640,0.0015489,121980.0,121970.0,3.33676362]
[1759579350832,0.0015489,121980.0,121970.0,3.65276362]
[1759579351021,0.0015489,121980.0,121970.0,3.33676362]
[1759579351230,0.0015489,121980.0,121970.0,3.65276362]
[1759579353316,0.0015489,121980.0,121970.0,3.33676362]
[1759579353545,0.0015489,121980.0,121970.0,3.65276362]
[1759579354554,0.0015489,121980.0,121970.0,3.33676362]
[1759579354848,0.0015489,121980.0,121970.0,3.56756362]
[1759579355068,0.0015489,121980.0,121970.0,3.33676362]
[1759579355406,0.0015489,121980.0,121970.0,3.65276362]
[1759579360624,0.00031914,121980.0,121970.0,3.65276362]
[1759579361439,0.00031914,121980.0,121970.0,3.33676362]
[1759579361638,0.00031914,121980.0,121970.0,3.65272362]
[1759579362705,0.00031914,121980.0,121970.0,3.59378085]
[1759579366432,0.00031914,121980.0,121970.0,3.27782085]
[1759579366628,0.00031914,121980.0,121970.0,3.59378085]
[1759579367563,0.00031914,121980.0,121970.0,3.66750048]
[1759579370120,0.00031914,121980.0,121970.0,3.35154048]
[1759579370276,0.00031914,121980.0,121970.0,3.66750048]
[1759579374157,0.00031914,121980.0,121970.0,3.35154048]
[1759579374329,0.00031914,121980.0,121970.0,3.66750048]
[1759579374540,0.00031914,121980.0,121970.0,3.35154048]
[1759579374749,0.00031914,121980.0,121970.0,3.66750048]
[1759579375209,0.00537914,121980.0,121970.0,3.18756574]
[1759579375406,0.16934044,121980.0,121970.0,0.50453685]
[1759579375642,0.16934044,121980.0,121970.0,0.18857685]
[1759579375789,0.16934044,121980.0,121970.0,0.50453685]
[1759579376492,0.16934044,121980.0,121970.0,0.5635114]
[1759579379414,0.16624044,121980.0,121970.0,0.2475514]
[1759579379618,0.16624044,121980.0,121970.0,0.5635114]
[1759579381260,0.16945044,121980.0,121970.0,0.5635114]
[1759579381975,0.16945044,121980.0,121970.0,0.2475514]
[1759579382211,0.16945044,121980.0,121970.0,0.5635114]
[1759579384814,0.16624044,121980.0,121970.0,0.5635114]
[1759579385020,0.16624044,121980.0,121970.0,0.2475514]
[1759579385403,0.16945044,121980.0,121970.0,0.5635114]
[1759579386744,0.16428044,121980.0,121970.0,0.5635114]
[1759579387662,0.16633044,121980.0,121970.0,0.5635114]
[1759579387874,0.16954044,121980.0,121970.0,0.5635114]
[1759579388395,0.16633044,121980.0,121970.0,0.5635114]
[1759579389385,0.16954044,121980.0,121970.0,0.5635114]
[1759579390457,0.16428044,121980.0,121970.0,0.5635114]
[1759579390771,0.16633044,121980.0,121970.0,0.5635114]
[1759579390988,0.16954044,121980.0,121970.0,0.5635114]
[1759579391426,0.16954044,121980.0,121970.0,0.2475514]
[1759579391676,0.16954044,121980.0,121970.0,0.5635114]
[1759579394593,0.00031914,121980.0,121970.0,0.5635114]
[1759579397705,0.16428044,121980.0,121970.0,0.5635114]
[1759579397961,0.00031914,121980.0,121970.0,0.5635114]
[1759579399810,0.00031914,121980.0,121970.0,3.66750048]
[1759579403055,0.00031914,121980.0,121970.0,3.68139738]
[1759579411468,0.00031914,121980.0,121970.0,4.02139738]
[1759579412931,0.00031914,121980.0,121970.0,3.70543738]
[1759579413138,0.00031914,121980.0,121970.0,4.02139738]
[1759579418231,0.00031914,121980.0,121970.0,3.70543738]
[1759579418409,0.00031914,121980.0,121970.0,4.02139738]
[1759579420462,0.00244914,121980.0,121970.0,3.93619738]
[1759579420606,0.00031914,121980.0,121970.0,4.02139738]
[1759579421923,0.00031914,121980.0,121970.0,3.70543738]
[1759579422136,0.00031914,121980.0,121970.0,4.02139738]
[1759579422316,0.00031914,121980.0,121970.0,3.93619738]
[1759579422534,0.00031914,121980.0,121970.0,4.02139738]
[1759579429181,0.00031914,121980.0,121970.0,4.00750048]
[1759579430411,0.00031914,121980.0,121970.0,4.01653005]
[1759579430589,0.00031914,121980.0,121970.0,4.02555962]
[1759579430794,0.00031914,121980.0,121970.0,3.70959962]
[1759579430976,0.00031914,121980.0,121970.0,4.02555962]
[1759579434196,3.228e-05,121980.0,121970.0,4.10868168]
[1759579434552,3.228e-05,121980.0,121970.0,4.03496205]
[1759579434771,3.228e-05,121980.0,121970.0,4.1381312]
[1759579434978,2.0,122000.0,121970.0,4.1381312]
[1759579434979,2.0,122000.0,121990.0,0.16394786]
[1759579435216,2.0,122000.0,121990.0,0.39466786]
[1759579435399,2.0,122000.0,121990.0,0.48604007]
[1759579435748,2.0,122000.0,121990.0,3.93988166]
[1759579436829,2.0000492,122000.0,121990.0,3.93988166]
[1759579437282,2.0000492,122000.0,121990.0,3.86621121]
[1759579437490,2.0000492,122000.0,121990.0,3.94933327]
[1759579437732,2.0000492,122000.0,121990.0,3.95133327]
[1759579437941,2.0000492,122000.0,121990.0,4.05450242]
[1759579438385,2.0000492,122000.0,121990.0,3.94933327]
[1759579438768,2.0000492,122000.0,121990.0,3.95233327]
[1759579438970,2.0000492,122000.0,121990.0,3.94933327]
[1759579439149,2.0000492,122000.0,121990.0,3.98448517]
[1759579439579,2.0000492,122000.0,121990.0,4.09265432]
[1759579440278,2.0000492,122000.0,121990.0,4.58121065]
[1759579440820,2.00045821,122000.0,121990.0,4.15521065]
[1759579441025,2.00045821,122000.0,121990.0,4.58121065]
[1759579442486,1.96045821,122000.0,121990.0,4.58121065]
[1759579442869,1.96045821,122000.0,121990.0,4.4780415]
[1759579443067,1.96045821,122000.0,121990.0,3.8212415]
[1759579443253,1.96045821,122000.0,121990.0,4.4780015]
[1759579443678,1.96045821,122000.0,121990.0,4.0520015]
[1759579444010,1.96045821,122000.0,121990.0,4.55133545]
[1759579448359,1.84990089,122000.0,121990.0,4.55133545]
[1759579449415,1.84990089,122000.0,121990.0,4.4779215]
[1759579449648,1.80990089,122000.0,121990.0,4.4779215]
[1759579452459,1.80990089,122000.0,121990.0,4.55133545]
[1759579456157,1.80990089,122000.0,121990.0,3.89465545]
[1759579456377,1.80990089,122000.0,121990.0,3.8212415]
[1759579456580,1.76990089,122000.0,121990.0,4.55125545]
[1759579456789,1.76990089,122000.0,121990.0,4.4778415]
[1759579457019,1.76990089,122000.0,121990.0,3.8212415]
[1759579457223,1.76990089,122000.0,121990.0,4.4778415]
[1759579458524,1.76990089,122000.0,121990.0,4.55125545]
[1759579460902,1.76990089,122000.0,121990.0,4.65125545]
[1759579461108,1.32744558,122000.0,121990.0,4.5778415]
[1759579461532,1.32744558,122000.0,121990.0,4.4778415]
[1759579461740,1.32744558,122000.0,121990.0,4.5778415]
[1759579463780,1.28744558,122000.0,121990.0,4.5778415]
[1759579464117,0.91708964,122000.0,121990.0,4.5778415]
[1759579464325,0.76663875,122000.0,121990.0,4.5778415]
[1759579464528,0.76663875,122000.0,121990.0,4.66160739]
[1759579464529,0.50570203,122000.0,121990.0,4.66160739]
[1759579464733,0.35658351,122000.0,121990.0,4.66160739]
[1759579464985,0.28631253,122000.0,121990.0,4.66160739]
[1759579465187,0.11259472,122000.0,121990.0,4.66160739]
[1759579467170,0.11259472,122000.0,121990.0,4.66070721]
[1759579468391,0.11259472,122000.0,121990.0,4.60194132]
[1759579470118,1e-08,122000.0,121990.0,4.60194132]
[1759579470823,0.02649766,122030.0,122020.0,0.50390755]
[1759579471023,0.02649766,122030.0,122020.0,3.92445721]
[1759579471024,0.02657845,122030.0,122020.0,3.92445721]
[1759579471666,0.02657845,122030.0,122020.0,3.94904659]
[1759579472003,0.03157845,122030.0,122020.0,3.9656021]
[1759579472206,0.00508079,122030.0,122020.0,3.9656021]
[1759579472809,0.00808079,122030.0,122020.0,3.9656021]
[1759579474029,8.079e-05,122030.0,122020.0,3.9656021]
[1759579474477,0.00208079,122030.0,122020.0,3.9656021]
[1759579476470,0.00269411,122030.0,122020.0,3.9656021]
[1759579477351,0.00269411,122030.0,122020.0,4.0243852]
[1759579477786,0.00269411,122030.0,122020.0,3.9391852]
[1759579478148,0.00269411,122030.0,122020.0,4.0243452]
[1759579478384,0.00791411,122030.0,122020.0,3.7085452]
[1759579478583,0.00791411,122030.0,122020.0,3.9655621]
[1759579478963,0.00791411,122030.0,122020.0,3.79196989]
[1759579479122,0.00791411,122030.0,122020.0,3.95587744]
[1759579479534,0.00791411,122030.0,122020.0,3.64007744]
[1759579480172,0.00791411,122030.0,122020.0,3.95591744]
[1759579481436,0.00469411,122030.0,122020.0,3.64007744]
[1759579481637,0.00791411,122030.0,122020.0,3.64007744]
[1759579481828,0.00791411,122030.0,122020.0,3.95591744]
[1759579482271,0.00791411,122030.0,122020.0,3.87075744]
[1759579482469,0.00791411,122030.0,122020.0,3.95591744]
[1759579483051,0.00791411,122030.0,122020.0,3.94045178]
[1759579483268,0.00791411,122030.0,122020.0,3.85529178]
[1759579483471,0.00791411,122030.0,122020.0,3.94045178]
[1759579484054,0.00791411,122030.0,122020.0,3.62461178]
[1759579484307,0.00791411,122030.0,122020.0,3.94041178]
[1759579484511,0.00791411,122030.0,122020.0,3.9542271]
[1759579486140,0.00791411,122030.0,122020.0,0.8649831]
[1759579486326,0.00791411,122030.0,122020.0,3.9542271]
[1759579488241,0.00791411,122030.0,122020.0,3.62187159]
[1759579488440,0.00791411,122030.0,122020.0,3.56895155]
[1759579488648,0.02421811,122030.0,122020.0,0.49378779]
[1759579488845,0.02421811,122030.0,122020.0,0.47970755]
[1759579489049,0.02421811,122030.0,122020.0,0.3158]
[1759579489283,0.18811223,122030.0,122020.0,0.3158]
[1759579489498,0.17180823,122030.0,122020.0,0.3158]
[1759579490691,0.16390755,122020.0,122010.0,0.08337571]
[1759579490891,0.16912755,122020.0,122010.0,3.405124]